[Event "*** Titled Tuesday Blitz"]
[Site "Chess.com"]
[Date "2018.12.04"]
[Round "5"]
[White "Ravan_02"]
[Black "josmito10"]
[Result "0-1"]
[WhiteElo "2492"]
[BlackElo "2686"]
[TimeControl "180+2"]
[EndTime "14:10:49 PST"]
[Termination "josmito10 won by resignation"]

1. d4 {[%clk 0:03:01.9]} 1... Nf6 {[%clk 0:03:00.7]} 2. c4 {[%clk 0:03:01.9]}
2... Nc6 {[%clk 0:03:00.1]} 3. Nf3 {[%clk 0:02:56.7]} 3... e6 {[%clk 0:03:00.6]}
4. Nc3 {[%clk 0:02:56.9]} 4... Bb4 {[%clk 0:03:01.3]} 5. Qc2 {[%clk 0:02:57.6]}
5... O-O {[%clk 0:02:58]} 6. a3 {[%clk 0:02:57.2]} 6... Bxc3+ {[%clk 0:02:59.1]}
7. Qxc3 {[%clk 0:02:59.1]} 7... a5 {[%clk 0:03:00.5]} 8. e3 {[%clk 0:02:59.7]}
8... d6 {[%clk 0:03:01.3]} 9. b3 {[%clk 0:03:00.4]} 9... Qe7 {[%clk 0:03:02.1]}
10. Bb2 {[%clk 0:02:59.4]} 10... Re8 {[%clk 0:03:03.7]} 11. Be2 {[%clk
0:02:59.9]} 11... e5 {[%clk 0:03:05.2]} 12. h3 {[%clk 0:03:00.1]} 12... Bf5
{[%clk 0:02:48.6]} 13. O-O {[%clk 0:02:52.5]} 13... Ne4 {[%clk 0:02:45.9]} 14.
Qc1 {[%clk 0:02:53.4]} 14... Qf6 {[%clk 0:02:34.9]} 15. d5 {[%clk 0:02:48.7]}
15... Ne7 {[%clk 0:02:29.3]} 16. Nd2 {[%clk 0:02:49.2]} 16... Nxd2 {[%clk
0:02:16.2]} 17. Qxd2 {[%clk 0:02:51.1]} 17... Qg6 {[%clk 0:02:17.5]} 18. Kh2
{[%clk 0:02:46]} 18... Qh6 {[%clk 0:02:12.4]} 19. f4 {[%clk 0:02:46.5]} 19...
exf4 {[%clk 0:02:01.8]} 20. Rxf4 {[%clk 0:02:46]} 20... Bd7 {[%clk 0:01:52.8]}
21. Raf1 {[%clk 0:02:45.8]} 21... Rf8 {[%clk 0:01:51]} 22. Qd4 {[%clk
0:02:35.6]} 22... Ng6 {[%clk 0:01:48.9]} 23. R4f3 {[%clk 0:02:37]} 23... Ne5
{[%clk 0:01:48]} 24. Rg3 {[%clk 0:02:37.4]} 24... b6 {[%clk 0:01:40.6]} 25. Qf4
{[%clk 0:02:37.3]} 25... Qxf4 {[%clk 0:01:26]} 26. exf4 {[%clk 0:02:37.3]} 26...
Ng6 {[%clk 0:01:27.4]} 27. h4 {[%clk 0:02:29.6]} 27... f6 {[%clk 0:01:24]} 28.
h5 {[%clk 0:02:28.7]} 28... Ne7 {[%clk 0:01:25.3]} 29. Bd3 {[%clk 0:02:27]}
29... Nf5 {[%clk 0:01:12.1]} 30. Bxf5 {[%clk 0:02:26.5]} 30... Bxf5 {[%clk
0:01:12.8]} 31. Re1 {[%clk 0:02:27.8]} 31... Kf7 {[%clk 0:01:11.9]} 32. h6
{[%clk 0:02:25.9]} 32... gxh6 {[%clk 0:01:10.3]} 33. Bd4 {[%clk 0:02:08.8]}
33... Rae8 {[%clk 0:01:08.8]} 34. Rc1 {[%clk 0:02:07.4]} 34... Re2 {[%clk
0:01:07.7]} 35. b4 {[%clk 0:02:06.8]} 35... axb4 {[%clk 0:01:03.2]} 36. axb4
{[%clk 0:02:06.3]} 36... Be4 {[%clk 0:01:04.1]} 37. c5 {[%clk 0:02:06.4]} 37...
bxc5 {[%clk 0:01:01.3]} 38. bxc5 {[%clk 0:02:06.6]} 38... Bxd5 {[%clk
0:01:01.3]} 39. cxd6 {[%clk 0:02:07.1]} 39... cxd6 {[%clk 0:01:03.2]} 40. Rc7+
{[%clk 0:02:07.9]} 40... Ke6 {[%clk 0:01:04.7]} 41. Rxh7 {[%clk 0:02:02.5]}
41... Re4 {[%clk 0:00:36.2]} 42. Bc3 {[%clk 0:02:00]} 42... Rxf4 {[%clk
0:00:35.8]} 43. Rxh6 {[%clk 0:02:01]} 43... Be4 {[%clk 0:00:33.7]} 44. Rg7
{[%clk 0:01:57.1]} 44... d5 {[%clk 0:00:31.9]} 45. Bb4 {[%clk 0:01:56]} 45...
Rc8 {[%clk 0:00:25.7]} 46. Rh5 {[%clk 0:01:09.5]} 46... Re8 {[%clk 0:00:26.5]}
47. Bc5 {[%clk 0:01:08.3]} 47... Rf5 {[%clk 0:00:25.8]} 48. Rh6 {[%clk
0:01:04.6]} 48... Rf1 {[%clk 0:00:21.6]} 49. Kg3 {[%clk 0:00:54.8]} 49... Ke5
{[%clk 0:00:21.6]} 50. Rh5+ {[%clk 0:00:42.1]} 50... Rf5 {[%clk 0:00:22]} 51.
Rh4 {[%clk 0:00:35.5]} 51... Rg5+ {[%clk 0:00:21.8]} 52. Rxg5+ {[%clk
0:00:35.3]} 52... fxg5 {[%clk 0:00:23.7]} 53. Rh5 {[%clk 0:00:36.1]} 53... Kf5
{[%clk 0:00:25]} 54. Be3 {[%clk 0:00:35.1]} 54... Rg8 {[%clk 0:00:26.1]} 55. Bd4
{[%clk 0:00:33.5]} 55... Kg6 {[%clk 0:00:21.9]} 56. Rh1 {[%clk 0:00:30.8]} 56...
Rc8 {[%clk 0:00:18]} 57. Ra1 {[%clk 0:00:19.6]} 57... Rc2 {[%clk 0:00:17.3]} 58.
Ra6+ {[%clk 0:00:20.4]} 58... Kh5 {[%clk 0:00:18.8]} 59. Bf2 {[%clk 0:00:18.2]}
59... Rc3+ {[%clk 0:00:16.9]} 60. Kh2 {[%clk 0:00:18.1]} 60... Kg4 {[%clk
0:00:18.5]} 61. Rd6 {[%clk 0:00:14.5]} 61... Rd3 {[%clk 0:00:19.5]} 62. Bb6
{[%clk 0:00:14.9]} 62... Rd2 {[%clk 0:00:19.4]} 63. Kg1 {[%clk 0:00:11.6]} 63...
Rxg2+ {[%clk 0:00:20.4]} 64. Kf1 {[%clk 0:00:12.9]} 64... Rb2 {[%clk 0:00:21.6]}
65. Rf6 {[%clk 0:00:09.5]} 65... Bd3+ {[%clk 0:00:18.4]} 66. Ke1 {[%clk
0:00:10.2]} 66... Bf5 {[%clk 0:00:17.6]} 67. Bd4 {[%clk 0:00:10]} 67... Rb4
{[%clk 0:00:16.6]} 68. Bc3 {[%clk 0:00:09]} 68... Re4+ {[%clk 0:00:14.9]} 69.
Kf2 {[%clk 0:00:10]} 69... d4 {[%clk 0:00:15.4]} 70. Bd2 {[%clk 0:00:11.2]}
70... d3 {[%clk 0:00:15.3]} 71. Be3 {[%clk 0:00:12.3]} 71... Rc4 {[%clk
0:00:15.4]} 72. Bd2 {[%clk 0:00:08.4]} 72... Re4 {[%clk 0:00:13.6]} 73. Be3
{[%clk 0:00:09.1]} 73... Re8 {[%clk 0:00:12.2]} 74. Rf7 {[%clk 0:00:09.6]} 74...
Rh8 {[%clk 0:00:13]} 75. Rg7 {[%clk 0:00:10.1]} 75... Rh2+ {[%clk 0:00:13]} 76.
Kg1 {[%clk 0:00:11.3]} 76... Rh5 {[%clk 0:00:13.9]} 77. Kf2 {[%clk 0:00:12.1]}
77... Be4 {[%clk 0:00:14.6]} 78. Bd2 {[%clk 0:00:06.4]} 78... Rh2+ {[%clk
0:00:15.4]} 79. Ke3 {[%clk 0:00:07.7]} 79... Re2+ {[%clk 0:00:16.2]} 80. Kd4
{[%clk 0:00:08.2]} 80... Rxd2 {[%clk 0:00:17.7]} 81. Kxe4 {[%clk 0:00:10.1]}
81... Rd1 {[%clk 0:00:17.2]} 82. Ke3 {[%clk 0:00:11.4]} 82... Kh4 {[%clk
0:00:17.4]} 83. Rg8 {[%clk 0:00:11.8]} 83... g4 {[%clk 0:00:17.4]} 84. Rh8+
{[%clk 0:00:13]} 84... Kg3 {[%clk 0:00:18.7]} 85. Rg8 {[%clk 0:00:14.2]} 85...
Kh3 {[%clk 0:00:19.5]} 86. Rh8+ {[%clk 0:00:15.5]} 86... Kg2 {[%clk 0:00:20.3]}
87. Rg8 {[%clk 0:00:16.5]} 87... g3 {[%clk 0:00:21.8]} 88. Kf4 {[%clk
0:00:16.7]} 88... Rf1+ {[%clk 0:00:21.3]} 89. Ke3 {[%clk 0:00:16.8]} 89... Rf3+
{[%clk 0:00:22.4]} 90. Kd2 {[%clk 0:00:18.1]} 90... Kf2 {[%clk 0:00:23.4]} 0-1

[Event "*** Titled Tuesday Blitz"]
[Site "Chess.com"]
[Date "2018.12.04"]
[Round "5"]
[White "aquaticpineapples"]
[Black "nurmiTV"]
[Result "1-0"]
[WhiteElo "2051"]
[BlackElo "2475"]
[TimeControl "180+2"]
[EndTime "14:12:43 PST"]
[Termination "aquaticpineapples won by checkmate"]

1. d4 {[%clk 0:03:01.9]} 1... Nf6 {[%clk 0:02:59.8]} 2. Nf3 {[%clk 0:03:03]}
2... e6 {[%clk 0:03:01.4]} 3. Nbd2 {[%clk 0:03:03.8]} 3... b6 {[%clk 0:03:02.6]}
4. e4 {[%clk 0:03:04.9]} 4... Bb7 {[%clk 0:03:04.1]} 5. Bd3 {[%clk 0:03:05.9]}
5... c5 {[%clk 0:03:05.3]} 6. c3 {[%clk 0:03:06.6]} 6... Nc6 {[%clk 0:03:05.7]}
7. a3 {[%clk 0:03:06.6]} 7... d5 {[%clk 0:03:04.7]} 8. e5 {[%clk 0:03:07.2]}
8... Nd7 {[%clk 0:03:05.1]} 9. Qe2 {[%clk 0:03:04.6]} 9... Be7 {[%clk
0:03:05.3]} 10. h4 {[%clk 0:03:03.7]} 10... a6 {[%clk 0:03:04.9]} 11. h5 {[%clk
0:03:02.9]} 11... h6 {[%clk 0:03:04.5]} 12. Rh3 {[%clk 0:03:00.9]} 12... b5
{[%clk 0:03:03.3]} 13. Rg3 {[%clk 0:02:59.2]} 13... Bf8 {[%clk 0:03:04.2]} 14.
Bc2 {[%clk 0:02:46]} 14... Qb6 {[%clk 0:03:02]} 15. Qd3 {[%clk 0:02:42.6]} 15...
O-O-O {[%clk 0:02:53.7]} 16. Kf1 {[%clk 0:02:34]} 16... a5 {[%clk 0:02:43]} 17.
Kg1 {[%clk 0:02:29.7]} 17... Ba6 {[%clk 0:02:39.8]} 18. Qe3 {[%clk 0:02:22.5]}
18... Kb7 {[%clk 0:02:08.6]} 19. Nf1 {[%clk 0:02:08.4]} 19... Rc8 {[%clk
0:02:06.7]} 20. Bd2 {[%clk 0:01:54.9]} 20... cxd4 {[%clk 0:01:49]} 21. cxd4
{[%clk 0:01:55.5]} 21... Ncxe5 {[%clk 0:01:48.6]} 22. Nxe5 {[%clk 0:01:37.4]}
22... Nxe5 {[%clk 0:01:48.3]} 23. Qxe5 {[%clk 0:01:35.4]} 23... Rxc2 {[%clk
0:01:46.8]} 24. Bf4 {[%clk 0:01:26.9]} 24... Rc8 {[%clk 0:01:33.7]} 25. Rc1
{[%clk 0:01:24.9]} 25... f6 {[%clk 0:01:28.4]} 26. Qe3 {[%clk 0:00:55.4]} 26...
Rxc1 {[%clk 0:01:13.9]} 27. Qxc1 {[%clk 0:00:56]} 27... b4 {[%clk 0:01:15.4]}
28. axb4 {[%clk 0:00:53.7]} 28... axb4 {[%clk 0:01:14.5]} 29. Nd2 {[%clk
0:00:30.6]} 29... Qc6 {[%clk 0:01:12.2]} 30. Qb1 {[%clk 0:00:24.1]} 30... Be2
{[%clk 0:01:03.2]} 31. Nb3 {[%clk 0:00:21.6]} 31... Kc8 {[%clk 0:00:49.5]} 32.
Qa1 {[%clk 0:00:19.4]} 32... Qa6 {[%clk 0:00:45]} 33. Qc1+ {[%clk 0:00:19.4]}
33... Bc4 {[%clk 0:00:39.3]} 34. Nd2 {[%clk 0:00:15.5]} 34... Kd8 {[%clk
0:00:35]} 35. b3 {[%clk 0:00:16.2]} 35... Bb5 {[%clk 0:00:34]} 36. Qc7+ {[%clk
0:00:15.8]} 36... Ke8 {[%clk 0:00:33.6]} 37. Qb8+ {[%clk 0:00:06.3]} 37... Kf7
{[%clk 0:00:18.7]} 38. Qc7+ {[%clk 0:00:07.5]} 38... Be7 {[%clk 0:00:19.2]} 39.
Bd6 {[%clk 0:00:08]} 39... Qxd6 {[%clk 0:00:18.5]} 40. Qc2 {[%clk 0:00:07.5]}
40... g5 {[%clk 0:00:17.9]} 41. hxg6+ {[%clk 0:00:07.4]} 41... Kg7 {[%clk
0:00:19.4]} 42. Nf3 {[%clk 0:00:07.7]} 42... h5 {[%clk 0:00:19.6]} 43. Nh4
{[%clk 0:00:08.4]} 43... Qf4 {[%clk 0:00:20.6]} 44. Nf3 {[%clk 0:00:06.8]} 44...
h4 {[%clk 0:00:18.4]} 45. Rh3 {[%clk 0:00:06.1]} 45... Bd7 {[%clk 0:00:16.8]}
46. Qd1 {[%clk 0:00:05.6]} 46... e5 {[%clk 0:00:16.8]} 47. dxe5 {[%clk
0:00:06.5]} 47... Bxh3 {[%clk 0:00:17.5]} 48. gxh3 {[%clk 0:00:07.3]} 48... fxe5
{[%clk 0:00:17.9]} 49. Qxd5 {[%clk 0:00:08.3]} 49... Bf6 {[%clk 0:00:18.6]} 50.
Qf7+ {[%clk 0:00:09.2]} 50... Kh6 {[%clk 0:00:19.5]} 51. Nh2 {[%clk 0:00:03.7]}
51... Qg5+ {[%clk 0:00:15.9]} 52. Ng4+ {[%clk 0:00:04.4]} 52... Qxg4+ {[%clk
0:00:05.1]} 53. hxg4 {[%clk 0:00:05.3]} 53... Bg7 {[%clk 0:00:07]} 54. Qf5
{[%clk 0:00:06]} 54... Bf8 {[%clk 0:00:06.6]} 55. Qf7 {[%clk 0:00:06.3]} 55...
Bg7 {[%clk 0:00:07]} 56. Qf5 {[%clk 0:00:06.9]} 56... Bf8 {[%clk 0:00:07.9]} 57.
g5+ {[%clk 0:00:08.3]} 57... Kh5 {[%clk 0:00:07.8]} 58. Qf6 {[%clk 0:00:08.6]}
58... Rg8 {[%clk 0:00:08.4]} 59. Qf7 {[%clk 0:00:09.2]} 59... Rxg6 {[%clk
0:00:08.5]} 60. Qxf8 {[%clk 0:00:10.4]} 60... Rxg5+ {[%clk 0:00:09.6]} 61. Kh2
{[%clk 0:00:11.3]} 61... Kg4 {[%clk 0:00:09.1]} 62. Qc8+ {[%clk 0:00:10.2]}
62... Rf5 {[%clk 0:00:09]} 63. Qg8+ {[%clk 0:00:10.7]} 63... Kf4 {[%clk
0:00:08.2]} 64. Qg2 {[%clk 0:00:11.1]} 64... Rg5 {[%clk 0:00:07.6]} 65. Qd5
{[%clk 0:00:11.3]} 65... e4 {[%clk 0:00:06.4]} 66. Qd6+ {[%clk 0:00:11.1]} 66...
Kf3 {[%clk 0:00:05.7]} 67. Qf6+ {[%clk 0:00:10.5]} 67... Kg4 {[%clk 0:00:07.1]}
68. Qe6+ {[%clk 0:00:11.2]} 68... Kf4 {[%clk 0:00:08.5]} 69. Qf6+ {[%clk
0:00:12.4]} 69... Kg4 {[%clk 0:00:09.6]} 70. Kg2 {[%clk 0:00:11.9]} 70... Rf5
{[%clk 0:00:10.4]} 71. Qg6+ {[%clk 0:00:12.7]} 71... Kf4 {[%clk 0:00:11.7]} 72.
Kf1 {[%clk 0:00:13.1]} 72... Rd5 {[%clk 0:00:11.6]} 73. Qf7+ {[%clk 0:00:13.2]}
73... Ke5 {[%clk 0:00:12.7]} 74. Qh5+ {[%clk 0:00:13.9]} 74... Kd4 {[%clk
0:00:13.4]} 75. Qxh4 {[%clk 0:00:15]} 75... Rc5 {[%clk 0:00:13.6]} 76. Qf6+
{[%clk 0:00:15.1]} 76... Kd5 {[%clk 0:00:10.7]} 77. Qf5+ {[%clk 0:00:14.9]}
77... Kd4 {[%clk 0:00:12.2]} 78. Qf6+ {[%clk 0:00:16]} 78... Kd5 {[%clk
0:00:13.3]} 79. Ke2 {[%clk 0:00:16.3]} 79... Rc3 {[%clk 0:00:13.6]} 80. Qf7+
{[%clk 0:00:16.1]} 80... Kc5 {[%clk 0:00:13.8]} 81. Qf5+ {[%clk 0:00:13.7]}
81... Kd4 {[%clk 0:00:14]} 82. Qd7+ {[%clk 0:00:14.2]} 82... Kc5 {[%clk
0:00:12.6]} 83. Qe6 {[%clk 0:00:13.3]} 83... Kd4 {[%clk 0:00:10.8]} 84. Kd2
{[%clk 0:00:13.3]} 84... Rd3+ {[%clk 0:00:10.8]} 85. Kc2 {[%clk 0:00:13.4]}
85... Rc3+ {[%clk 0:00:11]} 86. Kb2 {[%clk 0:00:14.4]} 86... Rf3 {[%clk
0:00:12.1]} 87. Qc4+ {[%clk 0:00:15.3]} 87... Ke5 {[%clk 0:00:12.8]} 88. Qc5+
{[%clk 0:00:15.6]} 88... Kf4 {[%clk 0:00:13.3]} 89. Qxb4 {[%clk 0:00:14.9]}
89... Rxf2+ {[%clk 0:00:14]} 90. Ka3 {[%clk 0:00:16]} 90... Kf3 {[%clk 0:00:15]}
91. Qf8+ {[%clk 0:00:15.5]} 91... Ke2 {[%clk 0:00:15.9]} 92. Qe7 {[%clk
0:00:14.9]} 92... e3 {[%clk 0:00:17]} 93. b4 {[%clk 0:00:15.2]} 93... Kd2 {[%clk
0:00:15.8]} 94. Qd6+ {[%clk 0:00:15.7]} 94... Ke1 {[%clk 0:00:16.9]} 95. b5
{[%clk 0:00:13.4]} 95... e2 {[%clk 0:00:17.6]} 96. b6 {[%clk 0:00:14.2]} 96...
Kf1 {[%clk 0:00:17.8]} 97. b7 {[%clk 0:00:12.2]} 97... e1=Q {[%clk 0:00:17.5]}
98. Qd3+ {[%clk 0:00:13.1]} 98... Re2 {[%clk 0:00:16.3]} 99. Qf3+ {[%clk
0:00:11]} 99... Rf2 {[%clk 0:00:16.9]} 100. Qh1+ {[%clk 0:00:09]} 100... Ke2
{[%clk 0:00:14.6]} 101. Qxe1+ {[%clk 0:00:10.9]} 101... Kxe1 {[%clk 0:00:16.1]}
102. b8=Q {[%clk 0:00:10.6]} 102... Rd2 {[%clk 0:00:16.9]} 103. Qe5+ {[%clk
0:00:10.8]} 103... Re2 {[%clk 0:00:17.5]} 104. Qc3+ {[%clk 0:00:10.4]} 104...
Kf2 {[%clk 0:00:19.4]} 105. Kb4 {[%clk 0:00:10]} 105... Re3 {[%clk 0:00:17.9]}
106. Qd4 {[%clk 0:00:09.7]} 106... Ke2 {[%clk 0:00:18.3]} 107. Kc4 {[%clk
0:00:09.9]} 107... Kf3 {[%clk 0:00:19.3]} 108. Qf6+ {[%clk 0:00:09.6]} 108...
Ke2 {[%clk 0:00:19.8]} 109. Kd4 {[%clk 0:00:08.9]} 109... Rd3+ {[%clk
0:00:20.7]} 110. Kc4 {[%clk 0:00:09.5]} 110... Re3 {[%clk 0:00:21.7]} 111. Qf4
{[%clk 0:00:09.7]} 111... Rf3 {[%clk 0:00:19.5]} 112. Qg4 {[%clk 0:00:10]}
112... Kf2 {[%clk 0:00:19.9]} 113. Kd4 {[%clk 0:00:09.5]} 113... Rg3 {[%clk
0:00:19.9]} 114. Qh4 {[%clk 0:00:09.1]} 114... Kg2 {[%clk 0:00:20.6]} 115. Ke4
{[%clk 0:00:08.7]} 115... Ra3 {[%clk 0:00:17.4]} 116. Qg4+ {[%clk 0:00:08.7]}
116... Rg3 {[%clk 0:00:18]} 117. Qe2+ {[%clk 0:00:08.9]} 117... Kg1 {[%clk
0:00:18.4]} 118. Kf4 {[%clk 0:00:07.2]} 118... Rg2 {[%clk 0:00:13.1]} 119. Qe1+
{[%clk 0:00:05.8]} 119... Kh2 {[%clk 0:00:14.5]} 120. Kf3 {[%clk 0:00:05.4]}
120... Rg7 {[%clk 0:00:06.9]} 121. Qd2+ {[%clk 0:00:05]} 121... Kg1 {[%clk
0:00:05.5]} 122. Qc1+ {[%clk 0:00:03.5]} 122... Kh2 {[%clk 0:00:06.1]} 123. Qb2+
{[%clk 0:00:04.9]} 123... Rg2 {[%clk 0:00:06.1]} 124. Qxg2# {[%clk 0:00:05.8]}
1-0

[Event "*** Titled Tuesday Blitz"]
[Site "Chess.com"]
[Date "2018.12.04"]
[Round "6"]
[White "JordanaEmiel"]
[Black "BvsN"]
[Result "0-1"]
[WhiteElo "2026"]
[BlackElo "2284"]
[TimeControl "180+2"]
[EndTime "14:15:15 PST"]
[Termination "BvsN won by resignation"]

1. d4 {[%clk 0:03:01.9]} 1... d5 {[%clk 0:02:59.3]} 2. c4 {[%clk 0:03:00.8]}
2... c6 {[%clk 0:03:00.6]} 3. Nf3 {[%clk 0:03:01.3]} 3... Nf6 {[%clk 0:03:01.8]}
4. Nc3 {[%clk 0:03:02.5]} 4... e6 {[%clk 0:03:02.6]} 5. e3 {[%clk 0:03:03.1]}
5... Nbd7 {[%clk 0:03:03]} 6. Bd3 {[%clk 0:03:03.1]} 6... dxc4 {[%clk
0:03:04.2]} 7. Bxc4 {[%clk 0:03:05]} 7... b5 {[%clk 0:03:05.6]} 8. Bd3 {[%clk
0:03:06.3]} 8... Bd6 {[%clk 0:03:06.8]} 9. Qc2 {[%clk 0:03:07.5]} 9... O-O
{[%clk 0:03:04.4]} 10. O-O {[%clk 0:03:08.3]} 10... Bb7 {[%clk 0:03:04.1]} 11.
Ng5 {[%clk 0:03:09.3]} 11... Bxh2+ {[%clk 0:02:47.2]} 12. Kh1 {[%clk 0:03:01.7]}
12... Bd6 {[%clk 0:02:15.8]} 13. Nxh7 {[%clk 0:02:59.8]} 13... Nxh7 {[%clk
0:02:06.2]} 14. Bxh7+ {[%clk 0:02:59.6]} 14... Kh8 {[%clk 0:02:07.7]} 15. g4
{[%clk 0:03:00.6]} 15... Qh4+ {[%clk 0:01:59.8]} 16. Kg2 {[%clk 0:03:00.9]}
16... Qxg4+ {[%clk 0:01:59.3]} 17. Kh1 {[%clk 0:03:01.1]} 0-1

[Event "*** Titled Tuesday Blitz"]
[Site "Chess.com"]
[Date "2018.12.04"]
[Round "6"]
[White "ASVZ"]
[Black "IngOscarArdila"]
[Result "1-0"]
[WhiteElo "2283"]
[BlackElo "2191"]
[TimeControl "180+2"]
[EndTime "14:15:33 PST"]
[Termination "ASVZ won by checkmate"]

1. e4 {[%clk 0:03:01.9]} 1... e5 {[%clk 0:03:00.4]} 2. Nf3 {[%clk 0:03:02.8]}
2... Nf6 {[%clk 0:03:00.9]} 3. Nc3 {[%clk 0:03:04.4]} 3... Nc6 {[%clk
0:02:59.3]} 4. Bb5 {[%clk 0:03:05]} 4... Bb4 {[%clk 0:03:00]} 5. O-O {[%clk
0:03:05.6]} 5... O-O {[%clk 0:03:00.6]} 6. d3 {[%clk 0:03:07.1]} 6... d6 {[%clk
0:03:01.6]} 7. Bg5 {[%clk 0:03:07.6]} 7... Bxc3 {[%clk 0:03:01.6]} 8. bxc3
{[%clk 0:03:09.5]} 8... Qe7 {[%clk 0:03:02.8]} 9. Bxc6 {[%clk 0:03:10.6]} 9...
bxc6 {[%clk 0:03:03.6]} 10. Rb1 {[%clk 0:03:12.3]} 10... Be6 {[%clk 0:03:02.3]}
11. c4 {[%clk 0:03:08.6]} 11... Rab8 {[%clk 0:03:02.3]} 12. Rb3 {[%clk 0:03:09]}
12... Rb6 {[%clk 0:03:02.6]} 13. Qd2 {[%clk 0:03:08]} 13... Rfb8 {[%clk
0:03:02.9]} 14. h3 {[%clk 0:03:03]} 14... h6 {[%clk 0:03:02.3]} 15. Bh4 {[%clk
0:03:04]} 15... g5 {[%clk 0:03:00.3]} 16. Nxg5 {[%clk 0:03:04.7]} 16... hxg5
{[%clk 0:03:01.1]} 17. Qxg5+ {[%clk 0:03:05.1]} 17... Kf8 {[%clk 0:03:00.6]} 18.
Qxf6 {[%clk 0:03:06.2]} 18... Qxf6 {[%clk 0:03:01.1]} 19. Bxf6 {[%clk
0:03:08.1]} 19... Kg8 {[%clk 0:02:52.7]} 20. f4 {[%clk 0:03:08.9]} 20... exf4
{[%clk 0:02:51.2]} 21. Rxf4 {[%clk 0:03:09.5]} 21... d5 {[%clk 0:02:50.3]} 22.
Rh4 {[%clk 0:02:50.4]} 22... Kf8 {[%clk 0:02:26.2]} 23. Rh8# {[%clk 0:02:50.1]}
1-0

[Event "*** Titled Tuesday Blitz"]
[Site "Chess.com"]
[Date "2018.12.04"]
[Round "6"]
[White "DenisQ"]
[Black "AquivaRubinstein"]
[Result "1-0"]
[WhiteElo "2604"]
[BlackElo "2413"]
[TimeControl "180+2"]
[EndTime "14:15:43 PST"]
[Termination "DenisQ won by resignation"]

1. Nf3 {[%clk 0:02:58.2]} 1... Nf6 {[%clk 0:02:58.4]} 2. g3 {[%clk 0:02:57.8]}
2... d5 {[%clk 0:02:57.2]} 3. Bg2 {[%clk 0:02:59.7]} 3... c5 {[%clk 0:02:58.3]}
4. O-O {[%clk 0:03:01.3]} 4... Nc6 {[%clk 0:02:59.6]} 5. d4 {[%clk 0:03:01.9]}
5... Bg4 {[%clk 0:02:52.5]} 6. Ne5 {[%clk 0:03:00.9]} 6... Bh5 {[%clk
0:02:50.9]} 7. Nxc6 {[%clk 0:03:00.2]} 7... bxc6 {[%clk 0:02:51.7]} 8. dxc5
{[%clk 0:03:00.9]} 8... e5 {[%clk 0:02:39.2]} 9. c4 {[%clk 0:03:00.4]} 9... Bxc5
{[%clk 0:02:26]} 10. Nc3 {[%clk 0:02:59.9]} 10... e4 {[%clk 0:02:20.8]} 11. Bg5
{[%clk 0:02:59.1]} 11... O-O {[%clk 0:02:08]} 12. cxd5 {[%clk 0:02:58.6]} 12...
cxd5 {[%clk 0:02:08.5]} 13. Bxf6 {[%clk 0:02:59.3]} 13... Qxf6 {[%clk
0:02:09.7]} 14. Qxd5 {[%clk 0:02:59.5]} 1-0

[Event "*** Titled Tuesday Blitz"]
[Site "Chess.com"]
[Date "2018.12.04"]
[Round "6"]
[White "MaestroASK"]
[Black "sergiochess83"]
[Result "0-1"]
[WhiteElo "2532"]
[BlackElo "2776"]
[TimeControl "180+2"]
[EndTime "14:18:02 PST"]
[Termination "sergiochess83 won by resignation"]

1. g3 {[%clk 0:02:51.8]} 1... d5 {[%clk 0:02:57.8]} 2. d3 {[%clk 0:02:52.2]}
2... Nf6 {[%clk 0:02:56.5]} 3. Bg2 {[%clk 0:02:52.2]} 3... g6 {[%clk 0:02:45.3]}
4. e4 {[%clk 0:02:52.4]} 4... Nc6 {[%clk 0:02:33.2]} 5. c3 {[%clk 0:02:52.3]}
5... Bg7 {[%clk 0:02:32.7]} 6. f3 {[%clk 0:02:52.1]} 6... O-O {[%clk 0:02:31.7]}
7. Nh3 {[%clk 0:02:52.3]} 7... e5 {[%clk 0:02:28.9]} 8. Nf2 {[%clk 0:02:52.8]}
8... Be6 {[%clk 0:02:28.1]} 9. O-O {[%clk 0:02:52.9]} 9... a5 {[%clk 0:02:22.2]}
10. a4 {[%clk 0:02:52.4]} 10... Qd7 {[%clk 0:02:22.7]} 11. Qe2 {[%clk
0:02:51.8]} 11... Rad8 {[%clk 0:02:23.5]} 12. Re1 {[%clk 0:02:52]} 12... h6
{[%clk 0:01:57.4]} 13. Qf1 {[%clk 0:02:51.8]} 13... Nh7 {[%clk 0:01:57.1]} 14.
Bh3 {[%clk 0:02:51]} 14... f5 {[%clk 0:01:55.6]} 15. exf5 {[%clk 0:02:50.3]}
15... Bxf5 {[%clk 0:01:56.3]} 16. Bxf5 {[%clk 0:02:42.1]} 16... Qxf5 {[%clk
0:01:57.1]} 17. f4 {[%clk 0:02:41.5]} 17... exf4 {[%clk 0:01:36.1]} 18. Bxf4
{[%clk 0:02:40.8]} 18... g5 {[%clk 0:01:27.3]} 19. Bxc7 {[%clk 0:02:31]} 19...
Rd7 {[%clk 0:01:26.9]} 20. Bb6 {[%clk 0:02:31.3]} 20... d4 {[%clk 0:01:28]} 21.
Ne4 {[%clk 0:01:58.7]} 21... Qg6 {[%clk 0:01:14]} 22. Qg2 {[%clk 0:01:55]} 22...
Ne5 {[%clk 0:01:14.5]} 23. Kh1 {[%clk 0:01:42.2]} 23... Qxb6 {[%clk 0:01:14.5]}
0-1

[Event "*** Titled Tuesday Blitz"]
[Site "Chess.com"]
[Date "2018.12.04"]
[Round "6"]
[White "Zq1"]
[Black "staz_staz"]
[Result "1-0"]
[WhiteElo "2499"]
[BlackElo "2352"]
[TimeControl "180+2"]
[EndTime "14:18:36 PST"]
[Termination "Zq1 won by resignation"]

1. d4 {[%clk 0:03:00.6]} 1... Nf6 {[%clk 0:02:59.2]} 2. c4 {[%clk 0:03:01.4]}
2... g6 {[%clk 0:02:59.4]} 3. Nc3 {[%clk 0:03:01.8]} 3... d6 {[%clk 0:03:00.1]}
4. e4 {[%clk 0:03:02.4]} 4... Bg7 {[%clk 0:03:01.8]} 5. Nf3 {[%clk 0:03:02.8]}
5... O-O {[%clk 0:03:03.3]} 6. Be2 {[%clk 0:03:04]} 6... e5 {[%clk 0:03:04.3]}
7. O-O {[%clk 0:03:04.7]} 7... Nc6 {[%clk 0:03:05.3]} 8. d5 {[%clk 0:03:05.6]}
8... Ne7 {[%clk 0:03:06.9]} 9. Ne1 {[%clk 0:03:06.7]} 9... Ne8 {[%clk
0:03:07.9]} 10. Be3 {[%clk 0:03:07.3]} 10... f5 {[%clk 0:03:08.1]} 11. f3 {[%clk
0:03:08.5]} 11... f4 {[%clk 0:03:09.7]} 12. Bf2 {[%clk 0:03:09.6]} 12... g5
{[%clk 0:03:10.7]} 13. c5 {[%clk 0:03:10.5]} 13... a6 {[%clk 0:03:05]} 14. a4
{[%clk 0:03:10.9]} 14... Nf6 {[%clk 0:03:03]} 15. a5 {[%clk 0:03:09.2]} 15...
Ng6 {[%clk 0:03:03.8]} 16. cxd6 {[%clk 0:03:10.1]} 16... cxd6 {[%clk 0:03:04]}
17. Na4 {[%clk 0:03:11.4]} 17... g4 {[%clk 0:03:00.8]} 18. Nb6 {[%clk
0:03:08.6]} 18... Rb8 {[%clk 0:03:01.7]} 19. Nxc8 {[%clk 0:03:05.6]} 19... Rxc8
{[%clk 0:03:03.6]} 20. Bb6 {[%clk 0:03:01.3]} 20... Qe7 {[%clk 0:03:01]} 21. Nd3
{[%clk 0:02:51.6]} 21... Nd7 {[%clk 0:02:43.4]} 22. fxg4 {[%clk 0:02:45.2]}
22... Nxb6 {[%clk 0:02:20.9]} 23. axb6 {[%clk 0:02:45.5]} 23... f3 {[%clk
0:02:21.3]} 24. Bxf3 {[%clk 0:02:40.1]} 24... Bh6 {[%clk 0:02:21.7]} 25. Qe1
{[%clk 0:02:36.8]} 25... Nf4 {[%clk 0:02:16]} 26. Nxf4 {[%clk 0:02:35.5]} 26...
Rxf4 {[%clk 0:02:17.9]} 27. g3 {[%clk 0:02:31.6]} 27... Rf7 {[%clk 0:02:17]} 28.
h4 {[%clk 0:02:31.5]} 28... Rc2 {[%clk 0:02:07.9]} 29. g5 {[%clk 0:02:31.6]}
29... Bf8 {[%clk 0:01:49.1]} 30. Rf2 {[%clk 0:02:28.3]} 30... Rc4 {[%clk
0:01:26.5]} 31. Bg4 {[%clk 0:02:24.7]} 31... Rxf2 {[%clk 0:01:16.5]} 32. Qxf2
{[%clk 0:02:24.8]} 32... Rxe4 {[%clk 0:01:16.9]} 33. Be6+ {[%clk 0:02:20.9]}
33... Kh8 {[%clk 0:01:10.4]} 34. Rf1 {[%clk 0:02:18.8]} 34... Bg7 {[%clk
0:01:11.6]} 35. Qc2 {[%clk 0:02:18.5]} 1-0